fUST/lending_fUST_20250115
["ID","MTS","AMOUNT","RATE_DAILY","PERIOD"]
[349020410,1736939444595,-500.0,0.00020333,3]
[349020411,1736939444605,-500.0,0.00020333,3]
[349020412,1736939444614,-500.0,0.00020333,3]
[349020413,1736939444624,-504.19553901,0.00020333,3]
[349020414,1736939444633,-500.0,0.00020333,3]
[349020415,1736939444643,-500.0,0.00020333,3]
[349020416,1736939444653,-500.0,0.00020333,3]
[349020417,1736939444663,-509.85858788,0.00020333,3]
[349020418,1736939444673,-500.0,0.00020333,3]
[349020419,1736939444683,-514.92166255,0.00020333,3]
[349020420,1736939444692,-150.30833027,0.00020368,2]
[349020421,1736939444702,-626.68,0.00020465,3]
[349020422,1736939444712,-500.0,0.00020465,3]
[349020423,1736939444721,-500.0,0.00020466,3]
[349020424,1736939444731,-1420.4,0.00020466,3]
[349020425,1736939444741,-929.47,0.00020466,3]
[349020426,1736939444751,-797.43,0.00020466,3]
[349020427,1736939444760,-500.0,0.00020466,3]
[349020428,1736939444771,-500.0,0.00020466,3]
[349020429,1736939444786,-500.0,0.00020466,3]
[349020430,1736939444796,-521.66,0.00020466,3]
[349020431,1736939444807,-964.43,0.00020466,3]
[349020432,1736939444816,-500.0,0.00020466,3]
[349020433,1736939444826,-174.90833228,0.00020466,3]
[349020434,1736939444835,-500.0,0.00020466,3]
[349020435,1736939444845,-1534.51,0.00020466,3]
[349020436,1736939444854,-757.16,0.00020466,3]
[349020437,1736939444863,-1074.21,0.00020466,3]
[349020438,1736939444872,-703.95,0.00020466,3]
[349020439,1736939444882,-982.67,0.00020466,3]
[349020440,1736939444891,-1374.59,0.00020466,3]
[349020441,1736939444901,-500.0,0.00020466,3]
[349020442,1736939444910,-500.0,0.00020466,3]
[349020443,1736939444920,-385.57736342,0.00020466,3]
[349020444,1736939444929,-906.23,0.00020466,3]
[349020445,1736939444939,-7329.94,0.00020466,2]
[349020446,1736939444948,-500.0,0.00020466,3]
[349020447,1736939444957,-2274.69,0.00020466,3]
[349020448,1736939444971,-19415.88116143,0.00020466,3]
[349020494,1736939446689,-372.952584,0.00020329,3]
[349020513,1736939446868,-127.047416,0.00020329,3]
[349020515,1736939446878,-500.0,0.00020331,3]
[349020517,1736939446888,-500.0,0.00020331,3]
[349020519,1736939446898,-15763.31513482,0.00020466,3]
[349020522,1736939446918,-12506.20370375,0.00020466,3]
[349020524,1736939446928,-716.66,0.00020466,3]
[349020526,1736939446937,-832.77,0.00020466,3]
[349020528,1736939446947,-500.0,0.00020466,3]
[349020530,1736939446956,-500.0,0.00020467,3]
[349020532,1736939446968,-681.75,0.00020467,3]
[349020534,1736939446976,-500.0,0.00020467,3]
[349020536,1736939446986,-674.73,0.00020467,3]
[349020538,1736939446995,-604.2,0.00020467,3]
[349020540,1736939447004,-4785.24667601,0.00020467,3]
[349020542,1736939447016,-16238.76332399,0.00020467,3]
[349020544,1736939447026,-968.59,0.00020467,3]
[349020546,1736939447035,-500.0,0.00020467,3]
[349020548,1736939447044,-675.46,0.00020467,3]
[349020549,1736939447054,-500.0,0.00020467,3]
[349020551,1736939447064,-500.0,0.00020467,3]
[349020553,1736939447074,-500.0,0.00020468,3]
[349020555,1736939447084,-500.0,0.00020468,3]
[349020557,1736939447094,-500.0,0.00020468,3]
[349020559,1736939447103,-500.0,0.00020468,3]
[349020561,1736939447112,-500.0,0.00020468,3]
[349020563,1736939447122,-648.8,0.00020468,3]
[349020565,1736939447131,-636.56,0.00020468,3]
[349020567,1736939447141,-524.29761343,0.00020468,3]
[349020569,1736939447150,-500.0,0.00020468,3]
[349020571,1736939447160,-500.0,0.00020468,3]
[349020573,1736939447169,-46.12740231,0.00020468,3]
[349021073,1736939535106,161.650052,0.00013973,2]
[349021079,1736940476571,161.650052,0.00013973,2]
[349021090,1736940566129,-320.99098157,0.00018524,2]
[349021091,1736940566150,-437.03779696,0.000188,2]
[349021092,1736940566173,-171.91271294,0.0001881,2]
[349021093,1736940566194,-158.22826462,0.000189,2]
[349021094,1736940566215,-300.0,0.00019252,2]
[349021095,1736940566237,-14333.3813376,0.00019253,2]
[349021096,1736940566258,-161.96782197,0.00019934,2]
[349021097,1736940566279,-351.122,0.0001997,2]
[349021098,1736940566300,-476.9602568,0.00019973,2]
[349021099,1736940566326,-19589.48202211,0.0002,5]
[349021176,1736940633877,-274.991764,0.00019285,2]
[349021223,1736940638715,-31.914862,0.00019285,2]
[349021225,1736940638728,-604.72733031,0.00019906,2]
[349021227,1736940638738,-507.56440871,0.00019973,2]
[349021229,1736940638747,-500.0,0.00019973,2]
[349021231,1736940638757,-506.13151607,0.00019973,2]
[349021233,1736940638767,-565.84064468,0.00019973,2]
[349021235,1736940638776,-300.0,0.00019999,2]
[349021237,1736940638785,-253.61603505,0.00019999,2]
[349021239,1736940638796,-269730.20520318,0.0002,5]
[349021244,1736940638832,-9463.80332804,0.0002,5]
[349021246,1736940638843,-9385.95860895,0.0002,5]
[349021249,1736940638855,-587.90281185,0.0002,5]
[349021483,1736940646999,-1666.96,0.0002,5]
[349021605,1736940648218,-1369.499995,0.0002,5]
[349021684,1736941440461,175.312586,0.00013973,2]
[349021708,1736941832219,-170.05380414,0.000188,2]
[349021710,1736941832230,-245.23215177,0.000189,2]
[349021712,1736941832240,-150.0,0.000189,2]
[349021714,1736941832249,-2147.5795739,0.00018932,2]
[349021716,1736941832259,-306.9066262,0.00018954,2]
[349021718,1736941832268,-267.11666608,0.00019763,2]
[349021719,1736941832279,-359.112,0.0001987,2]
[349021721,1736941832289,-529.13641396,0.00019898,2]
[349021723,1736941832300,-161.96782196,0.00019899,2]
[349021725,1736941832310,-602.3433906,0.000199,2]
[349021727,1736941832319,-814.85119759,0.0001998,2]
[349021728,1736941832329,-151.0,0.00019986,2]
[349021729,1736941832339,-300.0,0.00019996,2]
[349021730,1736941832349,-574.45,0.00019996,3]
[349021731,1736941832360,-500.0,0.00019997,3]
[349021732,1736941832369,-500.0,0.00019997,3]
[349021733,1736941832379,-500.0,0.00019997,3]
[349021734,1736941832389,-500.0,0.00019997,3]
[349021735,1736941832399,-557.52407295,0.00019997,3]
[349021736,1736941832409,-500.0,0.00019997,3]
[349021737,1736941832419,-498.85172314,0.00019997,3]
[349021738,1736941832430,-500.0,0.00019997,3]
[349021739,1736941832439,-399.44518828,0.00019997,3]
[349021741,1736941832449,-500.0,0.00019997,3]
[349021743,1736941832459,-502.67636188,0.00019997,3]
[349021744,1736941832468,-500.0,0.00019997,3]
[349021746,1736941832478,-500.0,0.00019997,3]
[349021749,1736941832491,-500.0,0.00019997,3]
[349021750,1736941832501,-500.0,0.00019997,3]
[349021751,1736941832511,-1322.86,0.00019997,3]
[349021752,1736941832522,-503.83064283,0.00019997,3]
[349021753,1736941832532,-852.02,0.00019997,3]
[349021754,1736941832542,-503.02533792,0.00019997,3]
[349021755,1736941832552,-502.48549317,0.00019997,3]
[349021756,1736941832562,-506.41675492,0.00019997,3]
[349021757,1736941832572,-730.97,0.00019997,3]
[349021758,1736941832582,-507.72314955,0.00019997,3]
[349021759,1736941832592,-25.71253987,0.00019997,3]
[349021760,1736941832614,-474.28746013,0.00019997,3]
[349021761,1736941832624,-25.71253987,0.00019997,3]
[349021762,1736941832688,-179.26282173,0.00019997,3]
[349021763,1736941832697,-500.0,0.00019997,3]
[349021764,1736941832707,-500.0,0.00019997,3]
[349021765,1736941832716,-503.43588272,0.00019997,3]
[349021766,1736941832726,-500.0,0.00019997,3]
[349021767,1736941832736,-503.57965041,0.00019997,3]
[349021768,1736941832746,-500.0,0.00019997,3]
[349021769,1736941832756,-500.0,0.00019997,3]
[349021770,1736941832766,-500.0,0.00019997,3]
[349021771,1736941832776,-904.9,0.00019997,3]
[349021772,1736941832787,-585.34,0.00019997,3]
[349021773,1736941832797,-500.0,0.00019997,2]
[349021774,1736941832806,-500.0,0.00019997,2]
[349021775,1736941832816,-165.44149425,0.00019997,2]
[349021776,1736941832826,-500.0,0.00019997,2]
[349021777,1736941832836,-500.0,0.00019997,2]
[349021778,1736941832847,-317.99639497,0.00019997,2]
[349021779,1736941832857,-500.0,0.00019997,2]
[349021780,1736941832867,-500.0,0.00019997,2]
[349021781,1736941832877,-500.0,0.00019997,2]
[349021782,1736941833003,-500.0,0.00019997,2]
[349021783,1736941833013,-500.0,0.00019997,2]
[349021784,1736941833023,-500.0,0.00019997,2]
[349021785,1736941833033,-500.0,0.00019997,2]
[349021786,1736941833042,-500.0,0.00019997,2]
[349021787,1736941833052,-500.0,0.00019997,2]
[349021788,1736941833062,-619.50836636,0.00019997,2]
[349021789,1736941833072,-232.53400323,0.00019997,2]
[349021790,1736941833082,-500.0,0.00019997,2]
[349021791,1736941833092,-500.0,0.00019997,2]
[349021792,1736941833102,-500.0,0.00019997,2]
[349021793,1736941833116,-128.68155031,0.00019997,2]
[349021830,1736941837933,-500.0,0.00019996,3]
[349021832,1736941837943,-371.31844969,0.00019997,2]
[349021834,1736941837953,-500.0,0.00019997,2]
[349021836,1736941837962,-242.55875424,0.00019997,2]
[349021839,1736941837972,-500.0,0.00019997,2]
[349021840,1736941837981,-1623.31,0.00019997,3]
[349021842,1736941837991,-274.17700243,0.00019997,3]
[349021844,1736941838000,-500.0,0.00019997,3]
[349021847,1736941838010,-694.06,0.00019997,3]
[349021848,1736941838019,-500.0,0.00019997,3]
[349021850,1736941838029,-698.14,0.00019997,3]
[349021853,1736941838039,-1005.53,0.00019997,3]
[349021855,1736941838049,-921.61,0.00019997,3]
[349021857,1736941838058,-500.0,0.00019997,3]
[349021859,1736941838068,-1709.93,0.00019997,3]
[349021861,1736941838078,-500.0,0.00019997,3]
[349021863,1736941838087,-500.0,0.00019997,3]
[349021865,1736941838097,-500.0,0.00019997,3]
[349021867,1736941838106,-435.5124983,0.00019997,3]
[349021869,1736941838121,-64.4875017,0.00019997,3]
[349021871,1736941838131,-917.40730782,0.00019997,3]
[349021873,1736941838144,-2.32269218,0.00019997,3]
[349021875,1736941838155,-206.78032551,0.00019997,3]
[349021877,1736941838164,-167.99015167,0.00019997,2]
[349021879,1736941838174,-500.0,0.00019997,2]
[349021881,1736941838187,-197.77841286,0.00019997,2]
[349021883,1736941838197,-185.82880068,0.00019997,2]
[349021886,1736941838207,-500.0,0.00019998,3]
[349021888,1736941838216,-500.0,0.00019998,3]
[349021889,1736941838226,-500.0,0.00019998,3]
[349021892,1736941838235,-615.57,0.00019998,3]
[349021894,1736941838245,-583.51,0.00019998,3]
[349021896,1736941838255,-500.0,0.00019998,3]
[349021898,1736941838264,-500.0,0.00019998,3]
[349021899,1736941838274,-500.0,0.00019998,3]
[349021902,1736941838284,-500.0,0.00019998,3]
[349021904,1736941838293,-500.0,0.00019998,3]
[349021906,1736941838303,-500.0,0.00019998,3]
[349021908,1736941838314,-500.0,0.00019998,3]
[349021910,1736941838324,-500.0,0.00019998,3]
[349021911,1736941838333,-500.0,0.00019998,3]
[349021914,1736941838344,-500.0,0.00019998,3]
[349021916,1736941838353,-500.0,0.00019998,3]
[349021917,1736941838363,-500.0,0.00019998,3]
[349021920,1736941838373,-621.45,0.00019998,3]
[349021922,1736941838383,-500.0,0.00019998,3]
[349021924,1736941838392,-500.0,0.00019998,3]
[349021926,1736941838401,-500.0,0.00019998,3]
[349021928,1736941838410,-500.0,0.00019998,3]
[349021930,1736941838419,-508.5808357,0.00019998,3]
[349021932,1736941838428,-500.0,0.00019998,3]
[349021934,1736941838437,-500.0,0.00019998,3]
[349021936,1736941838446,-500.0,0.00019998,3]
[349021938,1736941838456,-500.0,0.00019998,3]
[349021940,1736941838464,-511.17100908,0.00019998,3]
[349021942,1736941838474,-500.0,0.00019998,3]
[349021944,1736941838483,-1211.75,0.00019998,2]
[349021946,1736941838492,-500.0,0.00019998,3]
[349021948,1736941838502,-2919.28765284,0.00019998,3]
[349021950,1736941838518,-425.21602022,0.00019998,3]
[349022392,1736941843103,-41218.81632694,0.00019998,3]
[349022394,1736941843113,-741.96,0.00019998,3]
[349022395,1736941843126,-873.43,0.00019998,3]
[349022397,1736941843135,-500.0,0.00019998,3]
[349022399,1736941843144,-510.83,0.00019998,3]
[349022401,1736941843153,-500.0,0.00019998,3]
[349022403,1736941843164,-500.0,0.00019998,3]
[349022405,1736941843173,-500.0,0.00019998,3]
[349022407,1736941843182,-699.87,0.00019998,3]
[349022409,1736941843192,-500.0,0.00019998,3]
[349022411,1736941843202,-500.0,0.00019998,3]
[349022413,1736941843211,-503.86181261,0.00019998,3]
[349022415,1736941843220,-500.0,0.00019998,3]
[349022416,1736941843229,-736.84,0.00019998,3]
[349022418,1736941843238,-512.06383703,0.00019998,3]
[349022419,1736941843247,-500.0,0.00019998,3]
[349022420,1736941843257,-500.0,0.00019998,3]
[349022421,1736941843266,-500.0,0.00019998,3]
[349022422,1736941843275,-500.0,0.00019998,3]
[349022423,1736941843285,-500.0,0.00019998,3]
[349022424,1736941843297,-500.0,0.00019998,3]
[349022425,1736941843307,-416.68,0.00019998,3]
[349022426,1736941843317,-500.0,0.00019998,3]
[349022427,1736941843327,-500.0,0.00019998,3]
[349022428,1736941843337,-687.96,0.00019998,3]
[349022429,1736941843346,-515.98575392,0.00019998,3]
[349022430,1736941843356,-19334.51,0.00019998,3]
[349022431,1736941843365,-500.0,0.00019998,3]
[349022432,1736941843375,-887.87,0.00019998,3]
[349022433,1736941843384,-619.17,0.00019998,3]
[349022434,1736941843395,-500.0,0.00019998,3]
[349022435,1736941843404,-500.0,0.00019998,3]
[349022436,1736941843413,-503.00101157,0.00019998,3]
[349022437,1736941843423,-540.76477173,0.00019998,3]
[349022438,1736941843432,-500.0,0.00019998,3]
[349022446,1736941843531,-500.0,0.00019998,3]
[349022449,1736941843542,-500.0,0.00019999,3]
[349022451,1736941843551,-219.347,0.00019999,2]
[349022453,1736941843561,-408.02500214,0.00019999,3]
[349022455,1736941843570,-500.0,0.00019999,3]
[349022457,1736941843579,-500.0,0.00019999,3]
[349022459,1736941843589,-500.0,0.00019999,3]
[349022461,1736941843596,-597.91,0.00019999,3]
[349022463,1736941843606,-500.0,0.00019999,3]
[349022464,1736941843612,-3834.85,0.00019999,3]
[349022466,1736941843621,-500.0,0.00019999,3]
[349022468,1736941843630,-1842.52,0.00019999,3]
[349022470,1736941843640,-500.0,0.00019999,3]
[349022472,1736941843649,-500.0,0.00019999,3]
[349022475,1736941843659,-260.1946822,0.00019999,3]
[349022476,1736941843668,-500.0,0.00019999,3]
[349022478,1736941843677,-500.0,0.00019999,3]
[349022481,1736941843687,-9496.77822395,0.0002,5]
[349022482,1736941843696,-400.000001,0.0002,2]
[349022484,1736941843707,-307.8957268,0.0002,2]
[349022487,1736941843716,-429.8786486,0.0002,2]
[349022489,1736941843726,-153.0,0.0002,2]
[349022490,1736941843735,-153.0,0.0002,2]
[349022492,1736941843744,-602.34339036,0.00020038,2]
[349022494,1736941843754,-161.96782196,0.00020053,2]
[349022497,1736941843764,-574.45,0.00020133,3]
[349022499,1736941843774,-500.0,0.00020133,3]
[349022501,1736941843784,-598.62,0.00020134,3]
[349022503,1736941843795,-500.0,0.00020134,3]
[349022505,1736941843805,-183.67404396,0.00020134,3]
[349022507,1736941843814,-500.0,0.00020134,3]
[349022509,1736941843823,-505.17158871,0.00020134,3]
[349022511,1736941843833,-1322.86,0.00020134,3]
[349022513,1736941843842,-852.02,0.00020134,3]
[349022515,1736941843852,-730.97,0.00020134,3]
[349022517,1736941843861,-500.0,0.00020134,3]
[349022519,1736941843870,-500.0,0.00020134,3]
[349022521,1736941843880,-500.0,0.00020134,3]
[349022523,1736941843890,-500.0,0.00020134,3]
[349022525,1736941843900,-904.9,0.00020134,3]
[349022527,1736941843909,-585.34,0.00020134,3]
[349022529,1736941843919,-1623.31,0.00020134,3]
[349022531,1736941843928,-500.0,0.00020134,3]
[349022533,1736941843938,-694.06,0.00020134,3]
[349022535,1736941843947,-500.0,0.00020134,3]
[349022537,1736941843957,-698.14,0.00020134,3]
[349022539,1736941843966,-1005.53,0.00020134,3]
[349022541,1736941843976,-921.61,0.00020134,3]
[349022543,1736941843986,-500.0,0.00020134,3]
[349022545,1736941843999,-1709.93,0.00020134,3]
[349022547,1736941844009,-500.0,0.00020134,3]
[349022549,1736941844018,-500.0,0.00020134,3]
[349022551,1736941844027,-919.73,0.00020134,3]
[349022553,1736941844037,-500.0,0.00020135,3]
[349022555,1736941844046,-500.0,0.00020135,3]
[349022557,1736941844056,-500.0,0.00020135,3]
[349022559,1736941844065,-615.57,0.00020135,3]
[349022561,1736941844073,-583.51,0.00020135,3]
[349022563,1736941844083,-500.0,0.00020135,3]
[349022565,1736941844092,-500.0,0.00020135,3]
[349022567,1736941844101,-500.0,0.00020135,3]
[349022569,1736941844111,-500.0,0.00020135,3]
[349022571,1736941844127,-500.0,0.00020135,3]
[349022573,1736941844136,-500.0,0.00020135,3]
[349022575,1736941844146,-500.0,0.00020135,3]
[349022578,1736941844156,-500.0,0.00020135,3]
[349022581,1736941844166,-500.0,0.00020135,3]
[349022584,1736941844175,-500.0,0.00020135,3]
[349022587,1736941844185,-500.0,0.00020135,3]
[349022590,1736941844196,-500.0,0.00020135,3]
[349022592,1736941844206,-621.45,0.00020135,3]
[349022595,1736941844215,-500.0,0.00020135,3]
[349022598,1736941844224,-500.0,0.00020135,3]
[349022601,1736941844234,-500.0,0.00020135,3]
[349022604,1736941844244,-500.0,0.00020135,3]
[349022608,1736941844254,-500.0,0.00020135,3]
[349022612,1736941844263,-500.0,0.00020135,3]
[349022614,1736941844273,-500.0,0.00020135,3]
[349022618,1736941844284,-500.0,0.00020135,3]
[349022619,1736941844295,-500.0,0.00020135,3]
[349022623,1736941844305,-1211.75,0.00020135,2]
[349022626,1736941844314,-500.0,0.00020135,3]
[349022629,1736941844323,-44563.32,0.00020135,3]
[349022631,1736941844332,-741.96,0.00020135,3]
[349022632,1736941844342,-873.43,0.00020135,3]
[349022634,1736941844352,-500.0,0.00020135,3]
[349022637,1736941844362,-510.83,0.00020135,3]
[349022639,1736941844372,-500.0,0.00020135,3]
[349022641,1736941844381,-500.0,0.00020135,3]
[349022643,1736941844390,-500.0,0.00020135,3]
[349022645,1736941844399,-699.87,0.00020135,3]
[349022646,1736941844408,-500.0,0.00020135,3]
[349022648,1736941844418,-500.0,0.00020135,3]
[349022651,1736941844428,-500.0,0.00020135,3]
[349022653,1736941844438,-151.0,0.00020135,2]
[349022655,1736941844448,-151.0,0.00020135,2]
[349022656,1736941844457,-151.0,0.00020135,2]
[349022659,1736941844467,-151.0,0.00020135,2]
[349022660,1736941844476,-736.84,0.00020135,3]
[349022662,1736941844486,-151.0,0.00020135,2]
[349022665,1736941844496,-500.0,0.00020135,3]
[349022666,1736941844506,-151.0,0.00020135,2]
[349022669,1736941844515,-500.0,0.00020135,3]
[349022670,1736941844525,-151.0,0.00020135,2]
[349022672,1736941844534,-500.0,0.00020135,3]
[349022674,1736941844545,-151.0,0.00020135,2]
[349022677,1736941844555,-298.440834,0.00020135,2]
[349022679,1736941844564,-500.0,0.00020135,3]
[349022681,1736941844573,-532.81738888,0.00020135,3]
[349022683,1736941844583,-687.96,0.00020135,3]
[349022685,1736941844592,-151.0,0.00020135,2]
[349022687,1736941844601,-19334.51,0.00020135,3]
[349022689,1736941844611,-500.0,0.00020135,3]
[349022691,1736941844621,-151.0,0.00020135,2]
[349022693,1736941844630,-556.269652,0.00020135,2]
[349022694,1736941844639,-151.0,0.00020135,2]
[349022696,1736941844648,-887.87,0.00020135,3]
[349022698,1736941844658,-556.269652,0.00020135,2]
[349022700,1736941844668,-151.0,0.00020135,2]
[349022703,1736941844678,-423.422106,0.00020135,2]
[349022705,1736941844688,-151.0,0.00020135,2]
[349022706,1736941844702,-423.422106,0.00020135,2]
[349022708,1736941844715,-151.0,0.00020135,2]
[349022711,1736941844725,-619.17,0.00020135,3]
[349022712,1736941844735,-500.0,0.00020135,3]
[349022715,1736941844745,-500.0,0.00020135,3]
[349022716,1736941844753,-188.263472,0.00020135,2]
[349022718,1736941844762,-188.263472,0.00020135,2]
[349022720,1736941844771,-151.0,0.00020135,2]
[349022723,1736941844781,-500.0,0.00020135,3]
[349022725,1736941844790,-151.0,0.00020135,2]
[349022727,1736941844800,-151.0,0.00020135,2]
[349022729,1736941844810,-151.0,0.00020135,2]
[349022731,1736941844819,-500.0,0.00020135,3]
[349022733,1736941844828,-500.0,0.00020136,3]
[349022735,1736941844838,-500.0,0.00020136,3]
[349022737,1736941844847,-500.0,0.00020136,3]
[349022739,1736941844856,-597.91,0.00020136,3]
[349022741,1736941844866,-151.0,0.00020136,2]
[349022743,1736941844876,-500.0,0.00020136,3]
[349022745,1736941844885,-151.0,0.00020136,2]
[349022747,1736941844895,-151.0,0.00020136,2]
[349022749,1736941844905,-151.0,0.00020136,2]
[349022751,1736941844914,-152.119931,0.00020136,2]
[349022753,1736941844923,-151.0,0.00020136,2]
[349022755,1736941844932,-151.0,0.00020136,2]
[349022757,1736941844940,-151.0,0.00020136,2]
[349022759,1736941844948,-151.0,0.00020136,2]
[349022761,1736941844957,-3834.85,0.00020136,3]
[349022763,1736941844966,-151.0,0.00020136,2]
[349022765,1736941844973,-154.43886,0.00020136,2]
[349022767,1736941844982,-151.0,0.00020136,2]
[349022769,1736941844992,-500.0,0.00020136,3]
[349022771,1736941845002,-1842.52,0.00020136,3]
[349022773,1736941845011,-500.0,0.00020136,3]
[349022775,1736941845021,-500.0,0.00020136,3]
[349022777,1736941845031,-500.0,0.00020136,3]
[349022779,1736941845040,-500.0,0.00020136,3]
[349022781,1736941845049,-602.34339036,0.00020176,2]
[349022783,1736941845059,-161.96782196,0.00020208,2]
[349022785,1736941845069,-574.45,0.0002027,3]
[349022787,1736941845078,-500.0,0.0002027,3]
[349022789,1736941845088,-500.0,0.00020271,3]
[349022791,1736941845098,-500.0,0.00020271,3]
[349022793,1736941845107,-1322.86,0.00020271,3]
[349022795,1736941845122,-852.02,0.00020271,3]
[349022797,1736941845132,-730.97,0.00020271,3]
[349022799,1736941845141,-500.0,0.00020271,3]
[349022801,1736941845151,-500.0,0.00020271,3]
[349022803,1736941845161,-500.0,0.00020271,3]
[349022805,1736941845171,-500.0,0.00020271,3]
[349022807,1736941845180,-904.9,0.00020271,3]
[349022809,1736941845191,-585.34,0.00020271,3]
[349022811,1736941845200,-151.0,0.00020271,2]
[349022813,1736941845210,-1623.31,0.00020271,3]
[349022815,1736941845219,-151.0,0.00020271,2]
[349022817,1736941845229,-500.0,0.00020271,3]
[349022819,1736941845239,-151.0,0.00020271,2]
[349022821,1736941845249,-694.06,0.00020271,3]
[349022823,1736941845258,-151.0,0.00020271,2]
[349022825,1736941845268,-500.0,0.00020271,3]
[349022827,1736941845279,-698.14,0.00020271,3]
[349022829,1736941845289,-1005.53,0.00020271,3]
[349022831,1736941845299,-921.61,0.00020271,3]
[349022833,1736941845309,-500.0,0.00020271,3]
[349022835,1736941845319,-1709.93,0.00020271,3]
[349022837,1736941845329,-500.0,0.00020271,3]
[349022839,1736941845339,-500.0,0.00020271,3]
[349022841,1736941845349,-919.73,0.00020271,3]
[349022853,1736941845434,-188.263472,0.00020271,2]
[349022856,1736941845444,-188.263472,0.00020271,2]
[349022858,1736941845454,-151.0,0.00020271,2]
[349022860,1736941845464,-151.0,0.00020271,2]
[349022862,1736941845473,-3265.6674267,0.00020272,5]
[349022864,1736941845483,-1355.22046925,0.00020272,5]
[349022866,1736941845492,-500.0,0.00020272,3]
[349022868,1736941845502,-500.0,0.00020272,3]
[349022870,1736941845513,-615.57,0.00020272,3]
[349022872,1736941845523,-583.51,0.00020272,3]
[349022874,1736941845532,-500.0,0.00020272,3]
[349022876,1736941845544,-500.0,0.00020272,3]
[349022878,1736941845554,-500.0,0.00020272,3]
[349022880,1736941845564,-500.0,0.00020272,3]
[349022882,1736941845574,-500.0,0.00020272,3]
[349022884,1736941845584,-500.0,0.00020272,3]
[349022886,1736941845595,-500.0,0.00020272,3]
[349022888,1736941845604,-500.0,0.00020272,3]
[349022890,1736941845614,-500.0,0.00020272,3]
[349022893,1736941845624,-500.0,0.00020272,3]
[349022895,1736941845634,-500.0,0.00020272,3]
[349022897,1736941845643,-500.0,0.00020272,3]
[349022899,1736941845652,-621.45,0.00020272,3]
[349022901,1736941845662,-500.0,0.00020272,3]
[349022903,1736941845670,-500.0,0.00020272,3]
[349022905,1736941845680,-500.0,0.00020272,3]
[349022907,1736941845689,-500.0,0.00020272,3]
[349022909,1736941845698,-500.0,0.00020272,3]
[349022911,1736941845708,-151.0,0.00020272,2]
[349022913,1736941845718,-500.0,0.00020272,3]
[349022915,1736941845727,-500.0,0.00020272,3]
[349022917,1736941845738,-151.0,0.00020272,2]
[349022919,1736941845747,-500.0,0.00020272,3]
[349022921,1736941845756,-151.0,0.00020272,2]
[349022923,1736941845766,-500.0,0.00020272,3]
[349022925,1736941845776,-1211.75,0.00020272,2]
[349022927,1736941845786,-500.0,0.00020272,3]
[349022929,1736941845796,-44563.32,0.00020272,3]
[349022931,1736941845806,-151.0,0.00020272,2]
[349022933,1736941845815,-741.96,0.00020272,3]
[349022934,1736941845825,-873.43,0.00020272,3]
[349022936,1736941845835,-500.0,0.00020272,3]
[349022938,1736941845844,-510.83,0.00020272,3]
[349022940,1736941845854,-500.0,0.00020272,3]
[349022942,1736941845864,-500.0,0.00020272,3]